bitfinex-derivatives/quotes_SOLF0:USTF0_20250325
["timestamp","ask_amount","ask_price","bid_price","bid_amount"]
[1742908942390,33.335,144.18,144.14,28.07548168]
[1742908942590,26.45060528,144.18,144.16,0.05155771]
[1742908942790,0.05060528,144.18,144.16,0.05155771]
[1742908943394,26.4,144.21,144.16,0.05155771]
[1742908944497,6.9351,144.18,144.16,0.05155771]
[1742908945802,6.9354,144.17,144.16,0.05155771]
[1742908946195,6.9354,144.17,144.08,310.0955383]
[1742908946196,6.9361,144.16,144.08,310.0955383]
[1742908946396,6.9361,144.16,144.08,310.0755383]
[1742908947302,26.4,144.17,144.11,0.05286014]
[1742908947303,0.04510897,144.13,144.11,0.05286014]
[1742908947799,6.9378,144.12,144.11,0.05286014]
[1742908949197,33.34250897,144.13,144.11,0.05286014]
[1742908949406,26.40510897,144.13,144.11,0.05286014]
[1742908949803,6.9378,144.12,144.11,0.05286014]
[1742908950305,6.9396,144.09,144.05,23.90999617]
[1742908950502,26.38,144.09,144.05,23.90999617]
[1742908950695,26.44,144.13,144.05,23.90999617]
[1742908950904,26.44,144.14,144.06,26.44]
[1742908951104,26.44,144.16,144.06,26.44]
[1742908951301,0.04702584,144.11,144.09,0.04663994]
[1742908951504,26.44,144.16,144.06,26.44]
[1742908951713,0.04557018,144.11,144.09,0.04999931]
[1742908951912,6.9364,144.15,144.1,6.9383]
[1742908952206,26.44,144.16,144.09,0.04999931]
[1742908952413,6.98783419,144.14,144.09,6.98899931]
[1742908952812,0.05103419,144.14,144.09,6.98899931]
[1742908953106,0.05103419,144.14,144.09,0.04999931]
[1742908954719,21.49103419,144.16,144.09,0.04999931]
[1742908955019,26.44,144.19,144.1,26.44]
[1742908955219,26.44,144.2,144.1,26.44]
[1742908955518,26.44,144.23,144.1,26.44]
[1742908955912,0.04541042,144.18,144.17,6.9354]
[1742908956113,26.44,144.24,144.16,26.44]
[1742908956615,33.3724,144.24,144.18,6.9346]
[1742908956809,26.44,144.24,144.16,26.44]
[1742908957007,6.9341,144.2,144.16,26.44]
[1742908957310,6.9341,144.2,144.19,0.04824132]
[1742908957511,6.9341,144.2,144.15,6.936]
[1742908957708,0.0500033,144.21,144.18,0.04713448]
[1742908957918,26.44,144.24,144.13,26.44]
[1742908958116,6.98213678,144.21,144.18,0.05303027]
[1742908958519,26.42,144.2,144.09,26.4]
[1742908958722,6.9354,144.17,144.09,26.4]
[1742908958913,26.42,144.2,144.09,26.4]
[1742908959114,6.9353,144.18,144.13,6.937]
[1742908959314,26.42,144.2,144.09,26.42]
[1742908959819,0.04403227,144.16,144.13,6.98962601]
[1742908960019,0.04403227,144.16,144.13,0.05262601]
[1742908961629,0.04403227,144.16,144.14,6.9368]
[1742908961922,0.04403227,144.16,144.13,0.05262601]
[1742908962117,26.42403227,144.16,144.13,0.05262601]
[1742908962418,26.42403227,144.16,144.03,26.38]
[1742908962612,26.38,144.16,144.02,255.28]
[1742908962818,6.9391,144.1,144.02,26.42]
[1742908963018,26.42,144.1,144.02,26.42]
[1742908963414,0.04973066,144.07,144.05,0.04481005]
[1742908965719,26.4,144.06,144.05,0.04481005]
[1742908966122,0.04973066,144.07,144.05,0.04481005]
[1742908966323,0.04973066,144.07,143.99,26.38]
[1742908966518,6.9398,144.08,144.04,6.9413]
[1742908966723,26.38,144.09,143.99,26.38]
[1742908966925,6.9399,144.08,143.99,26.38]
[1742908967420,0.04788957,144.05,144.02,0.05141046]
[1742908968925,0.04788957,144.05,144.04,6.9416]
[1742908984533,6.98928957,144.05,144.02,0.05141046]
[1742908984730,26.16788957,144.05,143.93,74.32258337]
[1742908985034,33.0614,144.05,143.93,113.27081632]
[1742908985235,26.12,144.05,143.95,26.64023295]
[1742908985829,26.12,144.05,144.01,6.9428]
[1742908986035,0.05275956,144.01,143.99,26.24966034]
[1742908986334,0.05086828,144.01,143.99,26.24966034]
[1742908986929,0.05086828,144.01,144.0,6.9436]
[1742908989529,6.9399,144.08,144.03,6.9419]
[1742908989738,1.20843823,144.13,144.06,12.74823295]
[1742908989938,358.0,144.25,144.07,26.36]
[1742908990134,26.36,144.24,144.08,12.74823295]
[1742908990335,26.36,144.23,144.1,12.74823295]
[1742908990534,6.933,144.22,144.11,26.36]
[1742908990831,0.04570321,144.18,144.15,0.04542374]
[1742908992641,0.04570321,144.18,144.15,6.98162374]
[1742908993539,6.98570321,144.18,143.99,20.831]
[1742908993739,26.32,144.19,144.01,391.5]
[1742908994036,33.2547,144.19,144.04,27.89687016]
[1742908994242,33.2547,144.19,144.05,26.5]
[1742908994434,26.32,144.19,144.05,26.5]
[1742908994631,33.2545,144.19,144.05,26.5]
[1742908994835,0.043942,144.13,144.11,0.04693663]
[1742908995038,33.2545,144.19,144.12,6.9373]
[1742908995233,0.04759741,144.13,144.12,6.9373]
[1742908995438,26.48,144.15,144.14,0.04495793]
[1742908995636,26.48,144.15,144.05,26.5]
[1742908996039,0.0488095,144.11,144.09,0.05156447]
[1742908997445,0.0488095,144.11,144.09,6.99076447]
[1742908997642,0.0488095,144.11,144.09,0.05156447]
[1742908997842,26.5088095,144.11,144.09,0.05156447]
[1742908998547,33.4472095,144.11,144.09,0.05156447]
[1742908998947,26.5088095,144.11,144.09,0.05156447]
[1742908999545,6.9387,144.1,144.09,0.05156447]
[1742908999850,26.5088095,144.11,144.09,0.05156447]
[1742909000349,6.9387,144.1,144.09,0.05156447]
[1742909000550,26.5088095,144.11,144.02,6.9424]
[1742909000749,26.46,144.11,144.02,6.9424]
[1742909000950,26.46,144.11,144.01,6.943]
[1742909001140,26.46,144.11,143.98,256.87687016]
[1742909001348,6.9415,144.05,144.0,6.9432]
[1742909001549,33.3815,144.05,143.98,256.87687016]
[1742909001749,0.05156594,144.04,144.01,0.04802635]
[1742909002051,0.05156594,144.04,144.01,6.99102635]
[1742909002252,6.99326594,144.04,144.01,0.04802635]
[1742909002447,0.05156594,144.04,144.01,0.04802635]
[1742909003455,6.9426,144.02,144.01,0.04802635]
[1742909004250,0.05156594,144.04,144.01,0.04802635]
[1742909005446,0.05156594,144.04,144.01,6.99102635]
[1742909005649,0.05156594,144.04,144.01,0.04802635]
[1742909006752,0.05156594,144.04,144.01,6.99082635]
[1742909006943,0.05156594,144.04,144.01,0.04802635]
[1742909007157,229.04,144.16,144.02,12.74823295]
[1742909007158,26.46,144.16,144.02,12.74823295]
[1742909007348,26.46,144.16,144.09,6.9389]
[1742909007550,12.74823295,144.2,144.06,26.48]
[1742909007749,26.46,144.19,144.06,26.46]
[1742909008148,6.9372,144.14,144.11,0.04555419]
[1742909008351,26.46,144.13,144.11,0.04555419]
[1742909009752,6.9378,144.12,144.11,0.04555419]
[1742909010051,6.9378,144.12,144.03,26.44]
[1742909010552,6.9384,144.11,144.07,6.9399]
[1742909011155,26.46,144.13,144.08,6.98566282]
[1742909011455,0.04375391,144.1,144.08,6.98566282]
[1742909011957,0.04375391,144.1,144.09,6.9392]
[1742909012649,5.391e-05,144.1,144.09,6.9392]
[1742909015259,5.391e-05,144.1,144.08,6.98556282]
[1742909015462,5.391e-05,144.1,144.08,0.04606282]
[1742909017254,6.9392,144.09,144.08,0.04606282]
[1742909021657,5.391e-05,144.1,144.0,6.9433]
[1742909021862,39.10823295,144.11,144.0,6.9433]
[1742909022663,39.10823295,144.11,143.99,6.9438]
[1742909022961,6.942,144.04,143.97,26.26]
[1742909023163,6.942,144.04,144.01,6.943]
[1742909023359,0.04440973,144.02,144.01,6.943]
[1742909026058,0.04440973,144.02,144.0,6.9435]
[1742909026854,0.04440973,144.02,143.99,0.04690641]
[1742909027359,0.04440973,144.02,144.0,6.9433]
[1742909028566,0.04440973,144.02,143.99,0.04690641]
[1742909029266,0.04440973,144.02,144.0,6.9433]
[1742909029469,193.14493596,144.26,144.03,20.82]
[1742909029683,193.14493596,144.26,144.17,12.74823295]
[1742909029856,70.83359423,144.26,144.2,12.74823295]
[1742909030062,70.83359423,144.26,144.22,12.74823295]
[1742909030465,70.83359423,144.26,144.25,6.9315]
[1742909030766,59.46479423,144.26,144.25,6.9315]
[1742909030963,0.04677958,144.27,144.23,28.31259612]
[1742909031165,0.04677958,144.27,144.26,6.931]
[1742909035060,7.958e-05,144.27,144.26,6.931]
[1742909035464,28.06,144.36,144.23,48.63762126]
[1742909035664,28.06,144.36,144.23,48.58502514]
[1742909035864,28.06,144.36,144.3,6.9287]
[1742909036065,28.06,144.36,144.28,28.06]
[1742909036266,28.06,144.36,144.25,28.04]
[1742909036470,0.04518855,144.32,144.29,6.97482519]
[1742909036675,0.04518855,144.32,144.29,0.04562519]
[1742909037165,28.0,144.31,144.29,0.04562519]
[1742909037371,28.0,144.31,144.19,28.02]
[1742909037572,28.0,144.31,144.25,6.9312]
[1742909038174,28.0,144.31,144.26,6.931]
[1742909038474,0.04534993,144.3,144.27,0.04803042]
[1742909041175,6.98534993,144.3,144.18,36.79556844]
[1742909041373,28.0,144.31,144.18,36.79556844]
[1742909041374,48.32502514,144.31,144.18,36.79556844]
[1742909041673,358.0,144.3,144.18,36.79556844]
[1742909041870,20.32502514,144.28,144.18,36.79556844]
[1742909042070,27.92,144.27,144.18,36.79556844]
[1742909042367,0.0523389,144.24,144.21,0.04981116]
[1742909042570,27.9,144.23,144.21,0.04981116]
[1742909043275,34.84,144.23,144.17,43.94866136]
[1742909043474,6.9342,144.2,144.17,43.94866136]
[1742909043673,27.88,144.19,144.17,43.94866136]
[1742909044176,34.8147,144.19,144.17,43.94866136]
[1742909044480,34.86558501,144.19,144.17,43.99605541]
[1742909044682,6.9349,144.18,144.17,43.99605541]
[1742909044977,11.64064534,144.19,144.17,0.04739405]
[1742909045478,20.32502514,144.25,144.17,0.04739405]
[1742909045479,27.84,144.18,144.17,0.04739405]
[1742909046177,358.0,144.36,144.17,0.04739405]
[1742909046375,0.13352393,144.39,144.32,20.32502514]
[1742909046569,458.8141864,144.62,144.38,20.32502514]
[1742909046773,458.8141864,144.62,144.34,20.32502514]
[1742909046774,0.15355754,144.55,144.41,20.32502514]
[1742909047073,0.05336885,144.48,144.47,0.04671681]
[1742909047276,30.16,144.5,144.37,30.16]
[1742909047784,0.04496618,144.45,144.42,0.05249816]
[1742909048578,0.02003361,144.55,144.43,7.42051567]
[1742909048781,0.15355754,144.55,144.46,6.9211]
[1742909048982,0.15355754,144.55,144.43,7.42051567]
[1742909049380,6.919,144.52,144.43,7.42051567]
[1742909049582,30.18,144.51,144.43,7.42051567]
[1742909049883,0.04889112,144.49,144.46,0.05233122]
[1742909050279,0.18241505,144.49,144.46,0.05233122]
[1742909052385,6.9209,144.48,144.46,0.05233122]
[1742909052583,30.12,144.47,144.4,11.87282507]
[1742909052984,30.25352393,144.47,144.4,11.87282507]
[1742909053173,30.25352393,144.47,144.36,66.89556844]
[1742909053174,30.25352393,144.47,144.41,7.3785441]
[1742909053577,14.80067057,144.47,144.41,7.3785441]
[1742909053784,0.04682707,144.45,144.43,0.05063367]
[1742909054284,0.180351,144.45,144.43,0.05063367]
[1742909058988,14.66714664,144.47,144.43,0.05063367]
[1742909059380,6.9224,144.44,144.43,0.05063367]
[1742909060078,6.67076021,144.44,144.43,0.05063367]
[1742909061185,0.05021501,144.45,144.34,11.77914216]
[1742909061388,29.7,144.44,144.35,9.19889211]
[1742909061583,29.7,144.43,144.35,9.19889211]
[1742909061885,29.7,144.42,144.35,9.19889211]
[1742909062185,29.72,144.41,144.35,9.19889211]
[1742909062378,0.05267635,144.4,144.37,0.04605104]
[1742909063586,6.9253,144.38,144.37,0.04605104]
[1742909064784,0.05267635,144.4,144.31,9.19889211]
[1742909064990,29.72,144.41,144.31,9.19889211]
[1742909065180,29.72,144.41,144.32,7.37778562]
[1742909065576,29.72,144.41,144.32,50.44173549]
[1742909065787,6.9261,144.37,144.32,50.44173549]
[1742909066084,6.9261,144.37,144.35,0.04537616]
[1742909066883,0.04999558,144.38,144.35,0.04537616]
[1742909067489,6.97559558,144.38,144.35,7.42316178]
[1742909067889,0.04999558,144.38,144.35,0.04537616]
[1742909068191,6.97549558,144.38,144.35,0.04537616]
[1742909068484,0.02003361,144.55,144.36,261.49589415]
[1742909068690,0.02003361,144.55,144.42,32.93589415]
[1742909068881,0.02003361,144.55,144.43,30.7]
[1742909069081,0.02003361,144.55,144.43,38.85611723]
[1742909069484,0.05092156,144.5,144.48,0.04741858]
[1742909069687,0.02003361,144.55,144.5,6.9192]
[1742909070083,0.02003361,144.55,144.49,19.19551251]
[1742909070483,0.02003361,144.55,144.51,7.37778562]
[1742909070784,0.0507911,144.54,144.52,0.0519782]
[1742909072489,0.0507911,144.54,144.52,6.9700782]
[1742909073187,0.0507911,144.54,144.52,0.0519782]
[1742909074794,0.0507911,144.54,144.53,14.22166072]
[1742909075394,0.0507911,144.54,144.53,25.90472037]
[1742909075894,0.00329673,144.54,144.53,25.90472037]
[1742909077597,0.00329673,144.54,144.53,18.98662037]
[1742909079199,0.00329673,144.54,144.52,0.0519782]
[1742909081898,6.92099673,144.54,144.52,0.0519782]
[1742909082600,0.00329673,144.54,144.52,0.0519782]
[1742909084102,6.92119673,144.54,144.52,0.0519782]
[1742909084805,6.9181,144.53,144.52,0.0519782]
[1742909085004,0.00329673,144.54,144.45,29.88]
[1742909085203,0.02003361,144.55,144.47,6.9209]
[1742909085399,6.9189,144.52,144.46,7.17003153]
[1742909086003,6.9189,144.52,144.48,6.9204]
[1742909086203,0.05020334,144.5,144.48,0.05014124]
[1742909090605,0.05020334,144.5,144.43,11.50255033]
[1742909091399,0.05020334,144.5,144.44,18.73839071]
[1742909091604,29.88,144.51,144.46,0.05014158]
[1742909091805,0.0478679,144.48,144.33,29.9]
[1742909092006,29.9,144.47,144.33,29.9]
[1742909092203,29.9,144.46,144.36,6.9259]
[1742909092406,6.924,144.41,144.36,6.9259]
[1742909092607,29.88,144.42,144.34,7.2585267]
[1742909092807,13.8391,144.5,144.36,0.0476185]
[1742909092808,0.04463453,144.39,144.36,0.0476185]
[1742909093102,29.86,144.42,144.37,6.9253]
[1742909093303,0.04853196,144.39,144.37,6.9253]
[1742909093506,0.04853196,144.39,144.38,0.04832912]
[1742909094115,0.04853196,144.39,144.38,6.97362912]
[1742909094917,0.04853196,144.39,144.38,0.04832912]
[1742909095918,6.97333196,144.39,144.38,0.04832912]
[1742909096607,0.04853196,144.39,144.38,0.04832912]
[1742909097007,6.97333196,144.39,144.38,0.04832912]
[1742909098815,6.9266,144.36,144.3,29.68]
[1742909099117,6.9266,144.36,144.28,29.64]
[1742909099424,6.9258,144.37,144.32,6.9277]
[1742909100124,0.05298825,144.36,144.33,6.97599214]
[1742909100423,29.56,144.44,144.33,29.60839214]
[1742909100622,29.56,144.44,144.38,6.925]
[1742909100823,6.9234,144.43,144.33,29.56]
[1742909101123,29.58,144.45,144.38,6.9248]
[1742909101317,29.6,144.45,144.33,29.56]
[1742909101513,0.04789013,144.43,144.4,0.05108978]
[1742909101922,0.04789013,144.43,144.4,6.97508978]
[1742909102421,0.04789013,144.43,144.42,6.9234]
[1742909102621,29.54,144.49,144.4,0.05108978]
[1742909102925,29.56,144.5,144.41,29.56]
[1742909103122,29.56,144.5,144.46,6.921]
[1742909103320,28.38059459,144.54,144.42,29.54]
[1742909103524,29.56,144.53,144.42,29.54]
[1742909103726,0.04756048,144.49,144.47,0.05281303]
[1742909104226,0.04756048,144.49,144.47,6.97341303]
[1742909105225,0.04756048,144.49,144.48,6.9205]
[1742909106320,6.9179,144.54,144.5,6.9193]
[1742909106819,6.9181,144.53,144.46,29.44]
[1742909107324,6.9181,144.53,144.49,6.9198]
[1742909107523,0.04813395,144.51,144.48,0.05275791]
[1742909108525,0.04813395,144.51,144.5,6.9195]
[1742909112124,0.02003361,144.55,144.52,6.9182]
[1742909112325,6.93723361,144.55,144.46,29.44]
[1742909112530,0.02003361,144.55,144.51,6.9186]
[1742909112829,0.02003361,144.55,144.46,29.44]
[1742909113128,0.04696763,144.52,144.49,0.04831217]
[1742909113631,0.02003361,144.55,144.49,0.04831217]
[1742909113930,0.02003361,144.55,144.5,29.22]
[1742909114131,0.02003361,144.55,144.53,6.9179]
[1742909114331,0.02003361,144.55,144.5,29.22]
[1742909114826,0.05322241,144.54,144.51,0.04628348]
[1742909115231,0.05322241,144.54,144.53,6.9181]
[1742909115934,0.05322241,144.54,144.51,6.96488348]
[1742909116329,0.05322241,144.54,144.51,0.04628348]
[1742909118237,0.05322241,144.54,144.53,6.9181]
[1742909120828,0.02003361,144.55,144.53,6.9181]
[1742909121033,35.894,144.62,144.53,28.98]
[1742909121439,28.98,144.62,144.53,28.98]
[1742909121737,0.25656,144.63,144.53,28.98]
[1742909122127,0.04956455,144.59,144.57,0.0449423]
[1742909122531,28.98,144.62,144.57,0.0449423]
[1742909122727,6.9145,144.61,144.57,0.0449423]
[1742909123037,0.25656,144.63,144.61,6.914]
[1742909123339,0.25656,144.63,144.55,29.04]
[1742909123539,0.04508211,144.6,144.58,0.04909986]
[1742909123732,0.04508211,144.6,144.57,29.04]
[1742909123932,0.04508211,144.6,144.58,0.04889497]
[1742909124134,0.04508211,144.6,144.59,6.9148]
[1742909126035,0.25656,144.63,144.6,6.9144]
[1742909127236,0.28351029,144.63,144.6,6.9144]
[1742909127439,13.818,144.73,144.58,0.04889497]
[1742909127737,29.06,144.72,144.57,29.04]
[1742909127943,6.9115,144.67,144.63,6.913]
[1742909128142,29.06,144.72,144.57,29.04]
[1742909128443,6.9126,144.65,144.61,6.914]
[1742909128741,6.9126,144.65,144.63,0.04997979]
[1742909129142,29.04,144.68,144.63,0.04997979]
[1742909130140,6.9121,144.66,144.63,0.04997979]
[1742909130542,28.94,144.7,144.63,0.04997979]
[1742909130735,28.94,144.7,144.57,29.06003399]
[1742909130937,28.94,144.7,144.65,0.04569673]
[1742909131140,13.8161,144.75,144.65,0.02003399]
[1742909131341,29.04,144.74,144.66,0.0475655]
[1742909131538,29.04,144.74,144.65,0.02003399]
[1742909131741,6.9113,144.68,144.65,0.02003399]
[1742909132142,6.9119,144.66,144.65,0.06390988]
[1742909132338,29.0,144.66,144.55,29.0]
[1742909133038,6.914,144.62,144.58,6.9154]
[1742909133439,0.04266497,144.61,144.59,0.05240464]
[1742909134344,6.95696497,144.61,144.59,0.05240464]
[1742909134539,0.04266497,144.61,144.59,0.05240464]
[1742909134937,6.9147,144.6,144.59,0.05240464]
[1742909135644,6.95716497,144.61,144.59,0.05240464]
[1742909136043,6.9147,144.6,144.59,0.05240464]
[1742909136541,6.9164,144.57,144.47,29.04]
[1742909136736,29.08,144.62,144.47,29.04]
[1742909136942,228.18,144.66,144.49,20.26177461]
[1742909137143,6.9136,144.63,144.59,6.9149]
[1742909137334,257.34,144.66,144.57,29.14]
[1742909137538,0.04584821,144.62,144.6,0.05044689]
[1742909138147,6.95984821,144.62,144.6,0.05044689]
[1742909139346,0.04584821,144.62,144.6,0.05044689]
[1742909139735,6.96004821,144.62,144.6,0.05044689]
[1742909139943,0.04584821,144.62,144.6,0.05044689]
[1742909140844,0.04584821,144.62,144.54,228.21677846]
[1742909140845,0.04584821,144.62,144.54,0.03677846]
[1742909141047,6.9158,144.58,144.54,0.03677846]
[1742909142043,6.96544495,144.57,144.55,0.04388046]
[1742909142447,0.04884495,144.57,144.55,0.04388046]
[1742909143346,29.1,144.56,144.47,0.06754118]
[1742909143741,6.9203,144.49,144.47,0.06754118]
[1742909144051,29.08,144.52,144.47,0.06754118]
[1742909144349,6.9205,144.48,144.47,0.06754118]
[1742909144753,29.1,144.5,144.47,0.06754118]
[1742909145051,6.9205,144.48,144.47,0.06754118]
[1742909145539,6.9203,144.49,144.47,0.06754118]
[1742909145940,36.0197,144.5,144.47,0.06754118]
[1742909146244,29.1,144.5,144.47,0.06754118]
[1742909146741,29.1,144.5,144.36,365.12406471]
[1742909146946,29.1,144.5,144.37,29.02]
[1742909147151,6.9214,144.47,144.37,29.02]
[1742909147453,29.02,144.46,144.41,6.9236]
[1742909147950,0.04438429,144.45,144.43,6.9229]
[1742909148152,0.04438429,144.45,144.42,0.05250302]
[1742909149551,0.04438429,144.45,144.44,6.9224]
[1742909150049,0.04438429,144.45,144.43,6.9227]
[1742909150250,0.04438429,144.45,144.42,0.05250302]
[1742909152249,0.04438429,144.45,144.42,6.97560302]
[1742909152844,0.04438429,144.45,144.42,0.05250302]
[1742909153549,6.96668429,144.45,144.42,0.05250302]
[1742909154352,0.04438429,144.45,144.42,0.05250302]
[1742909154653,0.04438429,144.45,144.36,0.12406471]
[1742909154855,28.88,144.46,144.36,0.12406471]
[1742909155053,228.36,144.45,144.36,0.12406471]
[1742909155650,20.26177461,144.44,144.36,0.12406471]
[1742909155852,6.9258,144.37,144.36,0.12406471]
[1742909156048,28.8,144.37,144.31,6.9285]
[1742909156254,28.8,144.37,144.35,0.04541815]
[1742909156455,6.9275,144.34,144.25,28.78]
[1742909156758,6.9275,144.34,144.3,6.9287]
[1742909157350,28.76,144.33,144.21,630.38351721]
[1742909157657,28.76,144.33,144.22,28.76]
[1742909157857,0.04661197,144.28,144.26,0.0474124]
[1742909158059,6.9284,144.32,144.29,6.9294]
[1742909158253,6.9284,144.32,144.22,28.76]
[1742909158454,6.98052661,144.32,144.29,0.0516701]
[1742909158653,28.76,144.33,144.22,28.76]
[1742909158855,0.05218002,144.32,144.29,0.05196011]
[1742909159054,28.76,144.33,144.26,0.05023826]
[1742909159255,357.8594,144.43,144.26,28.68]
[1742909159458,0.04524126,144.31,144.28,0.05229943]
[1742909159656,6.9279,144.33,144.23,28.82]
[1742909159858,0.05318124,144.31,144.28,0.0507705]
[1742909160861,0.05318124,144.31,144.3,6.9291]
[1742909161055,0.05318124,144.31,144.28,0.0507705]
[1742909162663,6.9291,144.3,144.28,0.0507705]
[1742909162863,0.05318124,144.31,144.28,0.0507705]
[1742909163258,0.05318124,144.31,144.21,0.22794877]
[1742909163458,28.82,144.32,144.21,0.22794877]
[1742909163667,13.8547,144.34,144.21,0.22794877]
[1742909163854,28.84,144.31,144.21,0.22794877]
[1742909164263,0.04921527,144.27,144.25,0.0481432]
[1742909164463,28.86,144.26,144.25,0.0481432]
[1742909165160,35.791,144.26,144.25,0.0481432]
[1742909165362,28.86,144.26,144.21,0.22794877]
[1742909166563,28.86,144.26,144.22,0.04568723]
[1742909166961,6.9325,144.23,144.22,0.04568723]
[1742909167163,28.86,144.26,144.22,0.04568723]
[1742909167362,0.04864267,144.24,144.22,0.04568723]
[1742909168065,6.98094267,144.24,144.22,0.04568723]
[1742909168667,0.04864267,144.24,144.22,0.04568723]
[1742909170370,0.04864267,144.24,144.22,6.97828723]
[1742909170672,0.04864267,144.24,144.22,0.04568723]
[1742909170865,6.9325,144.23,144.22,0.04568723]
[1742909172766,6.98094267,144.24,144.22,0.04568723]
[1742909172971,0.04864267,144.24,144.22,0.04568723]
[1742909173366,20.26177461,144.37,144.22,0.04568723]
[1742909173572,28.62,144.35,144.21,0.22794877]
[1742909173771,6.9287,144.31,144.21,0.22794877]
[1742909174166,28.62,144.35,144.21,0.22794877]
[1742909174366,6.9291,144.31,144.27,6.9303]
[1742909174567,0.05094908,144.29,144.27,6.97556993]
[1742909174768,28.62,144.35,144.27,6.97556993]
[1742909174968,0.05317669,144.29,144.27,6.97556993]
[1742909175171,6.9294,144.3,144.27,6.9303]
[1742909175470,0.05305196,144.29,144.28,6.93]
[1742909175674,357.8594,144.4,144.23,28.6]
[1742909175868,0.04671112,144.3,144.27,0.04795759]
[1742909176067,6.9277,144.33,144.27,28.56]
[1742909176371,0.04635231,144.3,144.29,6.9296]
[1742909176673,35.4872,144.35,144.27,28.56]
[1742909176967,0.05191185,144.31,144.28,0.04393226]
[1742909177170,28.52,144.36,144.27,28.56]
[1742909177374,0.05024303,144.3,144.28,0.04626188]
[1742909177671,28.52,144.36,144.28,0.04626188]
[1742909177871,6.9288,144.31,144.28,0.04626188]
[1742909178472,28.48,144.32,144.28,0.04626188]
[1742909179779,0.05027903,144.33,144.28,0.04626188]
[1742909182276,6.9284,144.32,144.28,6.97616188]
[1742909183175,0.05027903,144.33,144.28,0.04626188]
[1742909183974,6.9296,144.29,144.28,0.04626188]
[1742909184172,35.3096,144.29,144.28,0.04626188]
[1742909184668,6.9306,144.27,144.21,0.22794877]
[1742909185578,6.9311,144.26,144.21,0.22794877]
[1742909185774,0.04870261,144.25,144.23,0.04893025]
[1742909186682,6.98060261,144.25,144.23,0.04893025]
[1742909187284,6.932,144.24,144.23,0.04893025]
[1742909188585,112.88109637,144.52,144.24,385.82]
[1742909188879,112.88109637,144.52,144.35,20.26177461]
[1742909189082,112.88109637,144.52,144.36,30.24]
[1742909189580,112.88109637,144.52,144.38,20.26177461]
[1742909189787,112.88109637,144.52,144.42,0.04782967]
[1742909189975,112.88109637,144.52,144.43,30.22]
[1742909190383,357.8594,144.56,144.41,20.26177461]
[1742909190579,310.82024134,144.59,144.36,378.8522]
[1742909190580,6.9178,144.54,144.46,6.9212]
[1742909190877,0.04970915,144.51,144.49,0.05190003]
[1742909191078,30.22,144.55,144.43,30.22]
[1742909191276,30.22,144.55,144.49,0.05092705]
[1742909191481,0.04468757,144.51,144.49,0.05092705]
[1742909192586,6.96408757,144.51,144.49,0.05092705]
[1742909192780,30.14,144.5,144.45,6.9215]
[1742909192979,30.14,144.5,144.4,30.14]
[1742909193787,30.08,144.53,144.41,20.26177461]
[1742909193983,0.04510551,144.46,144.44,0.04738709]
[1742909194186,36.9985,144.53,144.47,6.9205]
[1742909194683,6.97073301,144.51,144.45,6.9216]
[1742909194880,0.05123301,144.51,144.41,30.04]
[1742909195183,6.9203,144.49,144.43,6.9227]
[1742909195383,30.02,144.49,144.43,6.9227]
[1742909195886,0.04769042,144.47,144.45,0.04559455]
[1742909196080,0.04769042,144.47,144.44,6.9223]
[1742909196281,0.04769042,144.47,144.45,0.04814024]
[1742909196480,6.9208,144.48,144.39,29.96]
[1742909196678,0.04430339,144.47,144.45,0.05130702]
[1742909196887,0.04430339,144.47,144.39,29.96]
[1742909197389,0.04430339,144.47,144.42,0.04527583]
[1742909198189,6.96540339,144.47,144.42,6.96847583]
[1742909198490,0.04430339,144.47,144.42,0.04527583]
[1742909198892,0.04430339,144.47,144.45,6.9216]
[1742909199192,0.04430339,144.47,144.42,0.04527583]
[1742909199391,0.04430339,144.47,144.42,6.96847583]
[1742909199886,0.04430339,144.47,144.42,0.04527583]
[1742909200583,29.90430339,144.47,144.42,0.04527583]
[1742909201695,6.922,144.45,144.42,0.04527583]
[1742909201886,29.90430339,144.47,144.42,0.04527583]
[1742909204090,6.9222,144.45,144.42,0.04527583]